fUSD/lending_fUSD_20251025
["ID","MTS","AMOUNT","RATE_DAILY","PERIOD"]
[392347450,1761385841176,-500.0,0.00035706,7]
[392347451,1761385841186,-779.4110307,0.00035746,2]
[392347452,1761385841196,-150.0,0.00035795,7]
[392347453,1761385841206,-150.0,0.00035795,7]
[392347454,1761385841216,-150.0,0.00035795,7]
[392347455,1761385841225,-500.0,0.00035834,30]
[392347456,1761385841234,-1000.0,0.00035859,2]
[392347457,1761385841243,-1000.0,0.00035887,7]
[392347458,1761385841252,-6745.77220354,0.00035897,2]
[392347459,1761385841262,-3096.0,0.00035913,7]
[392347460,1761385841272,-500.0,0.00035924,30]
[392347461,1761385841283,-265.08692103,0.00035946,20]
[392347462,1761385841292,-2194.0,0.00035957,2]
[392347463,1761385841303,-500.0,0.00035969,30]
[392347464,1761385841313,-500.0,0.00035971,30]
[392347465,1761385841322,-1000.0,0.00035999,7]
[392347466,1761385841332,-1000.0,0.00035999,8]
[392347467,1761385841343,-512.99820734,0.00036,7]
[392347468,1761385841355,-779.4110307,0.00036009,2]
[392347469,1761385841365,-23610.7616525,0.00036025,2]
[392347470,1761385841375,-2000.0,0.00036044,2]
[392347471,1761385841386,-500.0,0.00036052,7]
[392347472,1761385841396,-506.29907877,0.00036052,30]
[392347473,1761385841407,-1999.99,0.00036052,2]
[392347474,1761385841416,-2000.0,0.00036065,2]
[392347475,1761385841426,-1999.99,0.00036079,2]
[392347476,1761385841435,-500.0,0.00036098,30]
[392347477,1761385841446,-1999.99,0.00036099,2]
[392347478,1761385841455,-150.0,0.000361,7]
[392347479,1761385841465,-150.0,0.000361,7]
[392347480,1761385841474,-1999.98,0.00036109,2]
[392347481,1761385841484,-2000.0,0.00036111,2]
[392347482,1761385841495,-1833.2,0.00036124,2]
[392347483,1761385841505,-2000.0,0.00036125,2]
[392347484,1761385841516,-1325.1594,0.0003613,2]
[392347485,1761385841525,-1000.0,0.00036133,2]
[392347486,1761385841538,-3096.0,0.00036186,120]
[392347487,1761385841548,-200.0,0.00036198,10]
[392347488,1761385841557,-500.0,0.00036216,30]
[392347489,1761385841567,-500.0,0.00036219,30]
[392347490,1761385841576,-152.0,0.00036295,3]
[392347491,1761385841586,-779.4110307,0.00036357,2]
[392347492,1761385841595,-1325.1594,0.0003636,2]
[392347493,1761385841605,-500.0,0.00036375,2]
[392347494,1761385841615,-500.0,0.00036375,30]
[392347495,1761385841625,-152.82233295,0.00036376,2]
[392347496,1761385841635,-152.18852537,0.00036376,2]
[392347497,1761385841645,-153.98282119,0.00036376,2]
[392347498,1761385841655,-152.77979678,0.00036376,2]
[392347499,1761385841665,-150.0,0.00036376,2]
[392347500,1761385841675,-150.0,0.00036376,2]
[392347501,1761385841684,-158.49349198,0.00036376,2]
[392347502,1761385841694,-188.02612744,0.00036376,2]
[392347503,1761385841703,-264.2456579,0.00036376,2]
[392347504,1761385841714,-153.08227759,0.00036376,2]
[392347505,1761385841724,-150.0,0.00036376,2]
[392347506,1761385841733,-500.0,0.00036376,2]
[392347507,1761385841743,-500.0,0.00036376,2]
[392347508,1761385841753,-150.0,0.00036376,2]
[392347509,1761385841762,-155.39754026,0.00036376,2]
[392347510,1761385841772,-228.19297603,0.00036376,2]
[392347511,1761385841781,-150.68270926,0.00036376,2]
[392347512,1761385841791,-150.0,0.00036376,2]
[392347513,1761385841801,-150.0,0.00036376,2]
[392347514,1761385841811,-150.9342707,0.00036376,2]
[392347515,1761385841821,-500.0,0.00036376,2]
[392347516,1761385841831,-500.0,0.00036376,2]
[392347517,1761385841841,-509.70230633,0.00036376,2]
[392347518,1761385841851,-255.09682206,0.00036376,2]
[392347519,1761385841860,-500.0,0.00036376,2]
[392347520,1761385841870,-155.67166831,0.00036376,2]
[392347521,1761385841887,-211.72444084,0.00036376,2]
[392347522,1761385841897,-500.0,0.00036376,2]
[392347523,1761385841907,-150.0,0.00036376,2]
[392347524,1761385841917,-150.0,0.00036376,2]
[392347525,1761385841927,-150.0,0.00036376,2]
[392347526,1761385841937,-250.0,0.00036376,2]
[392347527,1761385841947,-150.0,0.00036376,2]
[392347528,1761385841958,-150.0,0.00036376,2]
[392347529,1761385841968,-500.0,0.00036376,2]
[392347530,1761385841980,-500.0,0.00036376,2]
[392347531,1761385841990,-151.16919267,0.00036389,15]
[392347532,1761385842000,-1000.0,0.00036407,2]
[392347533,1761385842010,-23610.76165242,0.00036425,2]
[392347534,1761385842020,-157.83965744,0.00036431,2]
[392347535,1761385842029,-150.0,0.00036431,2]
[392347536,1761385842040,-500.0,0.00036431,2]
[392347537,1761385842050,-500.0,0.00036431,2]
[392347538,1761385842060,-200.0,0.00036431,2]
[392347539,1761385842069,-150.0,0.00036431,2]
[392347540,1761385842079,-200.0,0.00036431,2]
[392347541,1761385842089,-500.0,0.00036431,2]
[392347542,1761385842098,-500.0,0.00036431,2]
[392347543,1761385842108,-150.0,0.00036431,2]
[392347544,1761385842118,-150.0,0.00036431,2]
[392347545,1761385842127,-204.82792549,0.00036431,2]
[392347546,1761385842143,-500.0,0.00036431,2]
[392347547,1761385842152,-500.0,0.00036431,2]
[392347548,1761385842162,-1425.0,0.00036434,2]
[392347549,1761385842172,-1425.0,0.00036457,2]
[392347550,1761385842182,-1000.0,0.00036465,7]
[392347552,1761385842192,-166.03617143,0.00036486,2]
[392347553,1761385842202,-500.0,0.00036486,2]
[392347554,1761385842212,-200.0,0.00036486,2]
[392347555,1761385842221,-500.0,0.00036486,2]
[392347556,1761385842232,-410.57695541,0.00036486,2]
[392347559,1761385842242,-210.50418982,0.00036486,2]
[392347562,1761385842252,-150.0,0.00036486,2]
[392347564,1761385842262,-500.0,0.00036486,2]
[392347566,1761385842272,-500.0,0.00036486,2]
[392347567,1761385842281,-1000.0,0.00036489,7]
[392347569,1761385842291,-151.0,0.0003649,2]
[392347571,1761385842301,-151.0,0.0003649,2]
[392347572,1761385842312,-1325.1594,0.0003649,2]
[392347573,1761385842322,-163.0,0.0003649,2]
[392347574,1761385842332,-151.0,0.00036497,14]
[392347575,1761385842343,-169.0,0.00036499,30]
[392347576,1761385842352,-65508.84151753,0.000365,30]
[392347577,1761385842362,-3000.0,0.000365,30]
[392347578,1761385842373,-880.0,0.00036504,5]
[392347579,1761385842383,-6745.77220354,0.00036518,2]
[392347580,1761385842393,-165.67,0.0003652,2]
[392347582,1761385842403,-634.72972778,0.0003654,2]
[392347584,1761385842413,-500.0,0.0003654,2]
[392347585,1761385842422,-91.1124152,0.0003654,2]
[392347589,1761385843182,-108.8875848,0.0003654,2]
[392347590,1761385843191,-500.0,0.0003654,2]
[392347591,1761385843200,-500.0,0.0003654,2]
[392347592,1761385843210,-1000.0,0.00036551,7]
[392347593,1761385843218,-1449.15601945,0.00036568,2]
[392347594,1761385843227,-500.0,0.0003657,2]
[392347595,1761385843236,-4528.1006989,0.00036571,2]
[392347596,1761385843248,-4224.01703003,0.00036571,2]
[392347597,1761385843258,-372.41679866,0.00036571,2]
[392347598,1761385843267,-151.0,0.00036579,30]
[392347599,1761385843275,-276.209474,0.00036579,30]
[392347600,1761385843284,-151.0,0.00036579,30]
[392347601,1761385843293,-160.375702,0.00036579,30]
[392347602,1761385843302,-151.0,0.00036579,30]
[392347603,1761385843311,-151.0,0.00036579,30]
[392347604,1761385843320,-153.461281,0.00036579,30]
[392347605,1761385843329,-151.0,0.00036579,30]
[392347606,1761385843338,-151.0,0.00036579,30]
[392347607,1761385843347,-155.291273,0.00036579,30]
[392347608,1761385843356,-151.0,0.00036579,30]
[392347609,1761385843365,-2194.0,0.00036579,2]
[392347610,1761385843374,-354.44723604,0.00036581,2]
[392347611,1761385843386,-406.21117519,0.00036581,2]
[392347612,1761385843396,-516.78160657,0.00036582,30]
[392347613,1761385843405,-168.0,0.00036591,2]
[392347614,1761385843414,-500.0,0.00036595,2]
[392347615,1761385843423,-500.0,0.00036595,2]
[392347616,1761385843432,-500.0,0.00036595,2]
[392347617,1761385843441,-1000.0,0.000366,2]
[392347618,1761385843450,-5352.79108286,0.000366,2]
[392347619,1761385843461,-9077.54866152,0.000366,2]
[392347620,1761385843472,-8943.84023489,0.000366,2]
[392347621,1761385843825,-0.04580485,0.000366,2]
[392347626,1761385845554,-652.41,0.000366,2]
[392347631,1761386108060,632.192114,7.945e-05,2]
[392347632,1761386245632,151.0,0.00036681,30]
[392347633,1761386246289,151.0,0.00036681,30]
[392347634,1761386612894,1487.52458614,0.0003668,120]
[392347644,1761386786867,191.66,0.00013699,2]
[392347651,1761386909593,727.48745356,0.0003668,120]
[392347656,1761387031603,-150.0,0.00020082,2]
[392347657,1761387031612,-253.41705341,0.00020135,2]
[392347674,1761387037576,-93.55178935,0.00020135,2]
[392347675,1761387037586,-191.66,0.00020187,2]
[392347676,1761387037595,-250.0,0.0002209,2]
[392347677,1761387037604,-1463.39163546,0.00024,2]
[392347678,1761387037614,-365.65969714,0.00024427,2]
[392347679,1761387037624,-191.66,0.00026676,2]
[392347680,1761387037633,-150.0,0.00027391,2]
[392347681,1761387037642,-150.0,0.00027528,2]
[392347682,1761387037651,-3488.0,0.0003035,2]
[392347683,1761387037661,-364.47031009,0.0003035,2]
[392347710,1761387039822,-20.28299696,0.0003035,2]
[392347711,1761387039835,-2939.10669295,0.0003035,2]
[392347712,1761387039845,-250.0,0.00031,7]
[392347713,1761387039854,-166.66,0.0003135,30]
[392347714,1761387039863,-166.66,0.0003201,30]
[392347715,1761387039875,-500.0,0.00032311,2]
[392347716,1761387039892,-500.0,0.00032311,2]
[392347717,1761387039904,-500.0,0.00032311,2]
[392347718,1761387039914,-192.84714451,0.00032311,2]
[392347719,1761387039924,-277.93,0.00032312,2]
[392347720,1761387039934,-1000.0,0.00032571,2]
[392347721,1761387039944,-246.0,0.00032647,3]
[392347722,1761387039953,-1047.65629791,0.00032651,2]
[392347723,1761387039966,-2366.34370209,0.00032651,2]
[392347724,1761387039976,-819.0,0.00032651,2]
[392347725,1761387039986,-1312.0,0.00032651,2]
[392347726,1761387039995,-606.0,0.00032651,2]
[392347727,1761387040005,-1270.0,0.00032651,2]
[392347728,1761387040014,-818.0,0.00032651,2]
[392347729,1761387040024,-208.41,0.00032651,14]
[392347730,1761387040034,-152.0,0.00032659,3]
[392347731,1761387040044,-166.66,0.0003267,30]
[392347732,1761387040053,-150.0,0.00032763,2]
[392347733,1761387040063,-717.73060106,0.00032814,2]
[392347734,1761387040075,-8947.21879473,0.00032814,2]
[392347735,1761387040086,-8943.78386462,0.00032814,2]
[392347736,1761387040098,-2064.72673959,0.00032814,2]
[392347737,1761387040107,-1000.0,0.00032819,2]
[392347738,1761387040117,-1000.0,0.00032845,2]
[392347739,1761387040126,-595.962,0.00032845,33]
[392347740,1761387040136,-4416.85992193,0.00032858,2]
[392347741,1761387040148,-1573.10638806,0.00032858,2]
[392347742,1761387040157,-208.41,0.00032925,14]
[392347743,1761387040167,-7162.32384683,0.00032967,2]
[392347744,1761387040190,-325.70091321,0.00032967,2]
[392347759,1761387043018,-903.0,0.00032015,2]
[392347761,1761387043027,-8045.26523996,0.00032967,2]
[392347763,1761387043036,-150.0,0.00032992,7]
[392347765,1761387043045,-150.0,0.00032992,7]
[392347767,1761387043054,-150.0,0.00032992,7]
[392347769,1761387043063,-150.00000001,0.00032992,7]
[392347771,1761387043073,-150.0,0.00032992,7]
[392347773,1761387043082,-150.0,0.00032992,7]
[392347775,1761387043091,-1000.0,0.00033119,2]
[392347776,1761387043099,-191.66,0.00033165,2]
[392347778,1761387043109,-208.43,0.00033199,14]
[392347780,1761387043118,-1010.25,0.00033299,2]
[392347781,1761387043127,-166.66,0.0003333,30]
[392347782,1761387043136,-3488.0,0.0003335,2]
[392347783,1761387043145,-237.58697447,0.00033392,7]
[392347784,1761387043154,-168.88948689,0.00033392,7]
[392347785,1761387043163,-583.69656186,0.00033392,7]
[392347786,1761387043172,-1000.0,0.00033393,2]
[392347787,1761387043181,-150.0,0.00033467,3]
[392347788,1761387043190,-150.0,0.00033508,7]
[392347789,1761387043199,-1000.0,0.00033667,2]
[392347790,1761387043209,-502.07749133,0.00033785,2]
[392347791,1761387043222,-1000.0,0.00033941,2]
[392347792,1761387043231,-166.66,0.0003399,30]
[392347793,1761387043241,-250.0,0.00034,7]
[392347794,1761387043250,-367.38,0.00034034,30]
[392347795,1761387043258,-500.0,0.0003416,7]
[392347796,1761387043267,-500.0,0.00034167,7]
[392347797,1761387043276,-159.73,0.00034214,2]
[392347798,1761387043284,-1000.0,0.00034215,2]
[392347799,1761387043294,-152.0,0.00034217,4]
[392347800,1761387043302,-500.0,0.00034275,7]
[392347801,1761387043311,-1000.0,0.00034488,2]
[392347802,1761387043320,-500.0,0.00034505,7]
[392347803,1761387043329,-168.0,0.0003463,2]
[392347804,1761387043339,-166.66,0.0003465,30]
[392347805,1761387043347,-500.0,0.00034668,7]
[392347806,1761387043356,-500.0,0.00034704,7]
[392347807,1761387043365,-281.48,0.00034759,2]
[392347808,1761387043375,-1000.0,0.00034762,2]
[392347809,1761387043384,-500.0,0.00034783,7]
[392347810,1761387043393,-150.0,0.00034825,7]
[392347811,1761387043401,-150.0,0.00034825,7]
[392347812,1761387043413,-2500.0,0.00034865,2]
[392347813,1761387043422,-279.1196,0.00034865,2]
[392347814,1761387043431,-1000.0,0.00034865,2]
[392347815,1761387043439,-4722.04054255,0.0003492,2]
[392347816,1761387043448,-310.77766731,0.00034929,5]
[392347817,1761387043457,-504.13950078,0.00034929,5]
[392347818,1761387043466,-500.0,0.00034929,5]
[392347819,1761387043475,-500.0,0.00034929,2]
[392347820,1761387043485,-403.09,0.00034931,2]
[392347821,1761387043494,-300.0,0.00034944,2]
[392347822,1761387043503,-151.0,0.00034962,14]
[392347823,1761387043513,-500.0,0.00034964,30]
[392347824,1761387043522,-4057.7,0.00034964,30]
[392347825,1761387043531,-500.0,0.00034964,2]
[392347826,1761387043540,-192974.5116,0.00034965,2]
[392347827,1761387043551,-903.0,0.00035015,2]
[392347828,1761387043561,-3803.66,0.00035028,2]
[392347829,1761387043571,-1000.0,0.00035036,2]
[392347830,1761387043580,-500.0,0.00035052,30]
[392347831,1761387043591,-369.34,0.00035058,2]
[392347832,1761387043601,-500.0,0.00035065,7]
[392347833,1761387043610,-500.0,0.00035065,7]
[392347834,1761387043620,-900.0,0.00035065,7]
[392347835,1761387043629,-500.0,0.00035139,30]
[392347836,1761387043638,-728.0,0.00035227,120]
[392347837,1761387043647,-1038.48,0.00035227,2]
[392347838,1761387043656,-1000.0,0.0003531,2]
[392347839,1761387043666,-500.0,0.00035415,30]
[392347840,1761387043675,-728.0,0.00035428,7]
[392347841,1761387043684,-4722.04054247,0.00035443,2]
[392347842,1761387043693,-500.0,0.0003548,7]
[392347843,1761387043702,-506.29907877,0.0003548,30]
[392347844,1761387043711,-1000.0,0.00035584,2]
[392347845,1761387043720,-779.4110307,0.00035618,2]
[392347846,1761387043730,-159.73,0.00035626,2]
[392347847,1761387043739,-3414.0,0.00035651,2]
[392347848,1761387043748,-1312.0,0.00035651,2]
[392347849,1761387043757,-539.704,0.00035651,2]
[392347850,1761387043766,-625.747,0.00035651,2]
[392347851,1761387043775,-818.0,0.00035651,2]
[392347852,1761387043784,-12743.3153598,0.00035696,2]
[392347853,1761387043802,-500.0,0.00035706,7]
[392347854,1761387043813,-500.0,0.00035706,7]
[392347855,1761387043821,-500.0,0.00035706,7]
[392347856,1761387043830,-500.0,0.00035706,7]
[392347857,1761387043841,-513.53,0.00035706,7]
[392347858,1761387043851,-500.0,0.00035706,7]
[392347859,1761387043861,-500.0,0.00035706,7]
[392347860,1761387043873,-500.0,0.00035706,7]
[392347861,1761387043883,-500.0,0.00035706,7]
[392347862,1761387043892,-500.0,0.00035706,7]
[392347863,1761387043902,-500.0,0.00035706,7]
[392347864,1761387043912,-500.0,0.00035706,7]
[392347865,1761387043922,-500.0,0.00035706,7]
[392347866,1761387043932,-500.0,0.00035706,7]
[392347867,1761387043942,-500.0,0.00035706,7]
[392347868,1761387043952,-500.0,0.00035706,7]
[392347869,1761387043961,-500.0,0.00035706,7]
[392347870,1761387043970,-500.0,0.00035706,7]
[392347871,1761387043979,-500.0,0.00035706,7]
[392347872,1761387043988,-500.0,0.00035706,7]
[392347873,1761387043997,-500.0,0.00035706,7]
[392347874,1761387044007,-383.54,0.00035706,7]
[392347875,1761387044016,-500.0,0.00035729,30]
[392347876,1761387044025,-168.0,0.00035744,2]
[392347877,1761387044035,-152.0,0.00035776,5]
[392347878,1761387044045,-23610.7616525,0.00035787,2]
[392347879,1761387044053,-1000.0,0.00035858,2]
[392347880,1761387044062,-900.0,0.00035887,7]
[392347881,1761387044072,-265.08692103,0.00035947,20]
[392347882,1761387044081,-4722.04054247,0.00035966,2]
[392347883,1761387044090,-225.57543839,0.00036,3]
[392347884,1761387044099,-87483.62629058,0.00036,7]
[392347885,1761387044109,-779.4110307,0.00036057,2]
[392347886,1761387044119,-1000.0,0.00036132,2]
[392347887,1761387044128,-151.16919267,0.00036167,15]
[392347888,1761387044138,-1567.47468,0.0003623,2]
[392347889,1761387044147,-403.09,0.00036241,2]
[392347890,1761387044157,-23610.76165242,0.00036244,2]
[392347891,1761387044166,-200.0,0.00036253,10]
[392347892,1761387044175,-2000.0,0.00036255,2]
[392347893,1761387044184,-12743.3153598,0.00036257,2]
[392347894,1761387044193,-2000.0,0.00036267,2]
[392347895,1761387044202,-1833.16,0.00036271,2]
[392347896,1761387044211,-2000.0,0.00036274,2]
[392347897,1761387044220,-516.78160657,0.00036276,30]
[392347898,1761387044229,-151.0,0.00036306,14]
[392347899,1761387044238,-2000.0,0.00036309,2]
[392347900,1761387044247,-2000.0,0.00036319,2]
[392347901,1761387044256,-2000.0,0.0003632,2]
[392347902,1761387044265,-1999.99,0.00036323,2]
[392347903,1761387044274,-2000.0,0.00036328,2]
[392347904,1761387044283,-3488.0,0.0003635,2]
[392347905,1761387044292,-227.12346033,0.00036363,120]
[392347906,1761387044302,-152.82233295,0.00036376,2]
[392347907,1761387044312,-153.98282119,0.00036376,2]
[392347908,1761387044322,-152.77979678,0.00036376,2]
[392347909,1761387044332,-150.0,0.00036376,2]
[392347910,1761387044346,-188.02612744,0.00036376,2]
[392347911,1761387044356,-264.2456579,0.00036376,2]
[392347912,1761387044366,-150.0,0.00036376,2]
[392347913,1761387044375,-155.39754026,0.00036376,2]
[392347914,1761387044385,-228.19297603,0.00036376,2]
[392347915,1761387044394,-255.09682206,0.00036376,2]
[392347916,1761387044403,-155.67166831,0.00036376,2]
[392347917,1761387044412,-150.0,0.00036376,2]
[392347918,1761387044421,-150.0,0.00036376,2]
[392347919,1761387044431,-150.0,0.00036376,2]
[392347920,1761387044440,-150.0,0.00036376,2]
[392347921,1761387044449,-250.0,0.00036376,2]
[392347922,1761387044458,-150.0,0.00036376,2]
[392347923,1761387044467,-150.0,0.00036376,2]
[392347924,1761387044475,-500.0,0.00036376,2]
[392347925,1761387044485,-500.0,0.00036376,2]
[392347926,1761387044495,-152.18852537,0.00036376,2]
[392347927,1761387044503,-150.0,0.00036376,2]
[392347928,1761387044512,-158.49349198,0.00036376,2]
[392347929,1761387044521,-153.08227759,0.00036376,2]
[392347930,1761387044530,-500.0,0.00036376,2]
[392347931,1761387044538,-500.0,0.00036376,2]
[392347932,1761387044546,-150.0,0.00036376,2]
[392347933,1761387044556,-150.0,0.00036376,2]
[392347934,1761387044567,-150.68270926,0.00036376,2]
[392347935,1761387044577,-150.0,0.00036376,2]
[392347936,1761387044586,-150.0,0.00036376,2]
[392347937,1761387044595,-150.9342707,0.00036376,2]
[392347938,1761387044605,-500.0,0.00036376,2]
[392347939,1761387044614,-500.0,0.00036376,2]
[392347940,1761387044623,-509.70230633,0.00036376,2]
[392347941,1761387044632,-500.0,0.00036376,2]
[392347942,1761387044641,-211.72444084,0.00036376,2]
[392347943,1761387044650,-779.4110307,0.00036377,2]
[392347944,1761387044659,-946.31318,0.000364,21]
[392347945,1761387044668,-1000.0,0.00036406,2]
[392347946,1761387044678,-12743.3153598,0.00036421,3]
[392347947,1761387044689,-12743.3153598,0.00036427,3]
[392347948,1761387044699,-157.83965744,0.00036431,2]
[392347949,1761387044708,-150.0,0.00036431,2]
[392347950,1761387044718,-150.0,0.00036431,2]
[392347951,1761387044731,-150.0,0.00036431,2]
[392347952,1761387044740,-150.0,0.00036431,2]
[392347953,1761387044749,-204.82792549,0.00036431,2]
[392347954,1761387044758,-500.0,0.00036431,2]
[392347955,1761387044768,-500.0,0.00036431,2]
[392347956,1761387044777,-500.0,0.00036431,2]
[392347957,1761387044787,-500.0,0.00036431,2]
[392347958,1761387044801,-200.0,0.00036431,2]
[392347959,1761387044811,-200.0,0.00036431,2]
[392347960,1761387044821,-150.0,0.00036431,2]
[392347961,1761387044832,-200.0,0.00036431,2]
[392347962,1761387044842,-500.0,0.00036431,2]
[392347963,1761387044853,-1000.0,0.00036434,7]
[392347964,1761387044862,-1077.68747689,0.00036437,8]
[392347965,1761387044874,-1449.15601945,0.00036439,2]
[392347966,1761387044883,-1000.0,0.00036443,7]
[392347967,1761387044892,-1425.0,0.00036483,2]
[392347968,1761387044901,-1092.0,0.00036485,5]
[392347969,1761387044911,-204.74236721,0.00036486,2]
[392347970,1761387044921,-210.50418982,0.00036486,2]
[392347971,1761387044930,-150.0,0.00036486,2]
[392347972,1761387044940,-500.0,0.00036486,2]
[392347973,1761387044951,-500.0,0.00036486,2]
[392347974,1761387044960,-166.03617143,0.00036486,2]
[392347975,1761387044970,-500.0,0.00036486,2]
[392347976,1761387044979,-200.0,0.00036486,2]
[392347977,1761387044988,-500.0,0.00036486,2]
[392347978,1761387044998,-29470.85825856,0.00036488,32]
[392347979,1761387045007,-4722.04054247,0.00036489,2]
[392347980,1761387045016,-1425.0,0.0003649,2]
[392347981,1761387045026,-1425.0,0.00036493,2]
[392347982,1761387045035,-169.0,0.00036498,30]
[392347983,1761387045045,-1000.0,0.00036504,2]
[392347984,1761387045055,-759.16323672,0.00036506,7]
[392347985,1761387045064,-12743.3153598,0.00036522,3]
[392347986,1761387045074,-12743.3153598,0.0003653,3]
[392347987,1761387045083,-33068.8944497,0.00036532,2]
[392347988,1761387045093,-17268.2870894,0.00036532,2]
[392347989,1761387045102,-4712.8130536,0.00036532,2]
[392347990,1761387045111,-200.0,0.0003654,2]
[392347991,1761387045124,-500.0,0.0003654,2]
[392347992,1761387045134,-500.0,0.0003654,2]
[392347993,1761387045144,-634.72972778,0.0003654,2]
[392347994,1761387045155,-500.0,0.0003654,2]
[392347995,1761387045165,-5000.0,0.0003657,2]
[392347996,1761387045175,-59202.57845023,0.0003658,2]
[392347997,1761387045185,-8752.11772893,0.00036581,2]
[392347998,1761387045194,-151.0,0.00036581,30]
[392347999,1761387045203,-151.0,0.00036581,30]
[392348000,1761387045213,-172.255608,0.00036581,30]
[392348001,1761387045229,-1000.0,0.00036584,7]
[392348002,1761387045247,-25486.6307196,0.0003659,3]
[392348003,1761387045256,-151.0,0.00036592,14]
[392348004,1761387045266,-500.0,0.00036595,2]
[392348005,1761387045275,-500.0,0.00036595,2]
[392348006,1761387045285,-500.0,0.00036595,2]
[392348007,1761387045294,-345.03541439,0.00036597,2]
[392348008,1761387045303,-1000.0,0.00036599,8]
[392348009,1761387045312,-1000.0,0.00036599,7]
[392348010,1761387045321,-4057.7,0.00036599,30]
[392348011,1761387045331,-500.0,0.00036599,2]
[392348012,1761387045340,-45494.57758174,0.000366,2]
[392348013,1761387045350,-151.0,0.000366,2]
[392348014,1761387045359,-151.0,0.000366,2]
[392348015,1761387045369,-600.0,0.000366,13]
[392348016,1761387045378,-151.0,0.000366,30]
[392348017,1761387045387,-151.0,0.000366,30]
[392348018,1761387045396,-1000.0,0.00036607,7]
[392348019,1761387045406,-327.0,0.00036632,2]
[392348020,1761387045415,-664.23510011,0.00036636,7]
[392348021,1761387045424,-12743.3153598,0.00036641,3]
[392348022,1761387045433,-500.0,0.0003665,2]
[392348023,1761387045443,-500.0,0.0003665,2]
[392348024,1761387045452,-500.0,0.0003665,2]
[392348025,1761387045461,-1425.0,0.00036651,2]
[392348026,1761387045470,-165.40942717,0.00036658,7]
[392348027,1761387045479,-150.0,0.00036658,7]
[392348028,1761387045488,-203.34265713,0.00036658,7]
[392348029,1761387045497,-157.2184677,0.00036658,7]
[392348030,1761387045507,-12743.3153598,0.0003666,3]
[392348031,1761387045519,-12743.3153598,0.0003666,3]
[392348032,1761387045529,-164.96209115,0.0003666,2]
[392348033,1761387045538,-150.64,0.0003666,2]
[392348034,1761387045547,-114689.838238,0.0003666,3]
[392348035,1761387045556,-113223.396535,0.0003666,3]
[392348036,1761387045565,-151.0,0.00036661,30]
[392348037,1761387045574,-283.997184,0.00036661,30]
[392348038,1761387045583,-151.0,0.00036661,30]
[392348039,1761387045593,-1247.45687279,0.00036666,5]
[392348040,1761387045602,-199.16927698,0.00036667,5]
[392348041,1761387045611,-1000.0,0.00036668,7]
[392348042,1761387045620,-12743.3153598,0.00036669,3]
[392348043,1761387045629,-8087.38546676,0.00036669,3]
[392348044,1761387045639,-397.14585656,0.0003667,5]
[392348045,1761387045648,-287.938335,0.0003667,30]
[392348046,1761387045657,-151.0,0.0003667,30]
[392348047,1761387045666,-276.209474,0.0003667,30]
[392348048,1761387045677,-151.0,0.0003667,30]
[392348049,1761387045688,-151.0,0.0003667,30]
[392348050,1761387045698,-153.461281,0.0003667,30]
[392348051,1761387045707,-151.0,0.0003667,30]
[392348052,1761387045718,-500.0,0.0003667,30]
[392348053,1761387045729,-500.0,0.0003667,30]
[392348054,1761387045741,-253.665727,0.0003667,30]
[392348055,1761387045752,-286.457707,0.0003667,15]
[392348056,1761387045762,-255.606673,0.0003667,30]